[Event "7th Iberoamerican-ch 2019"]
[Site "Linares"]
[Date "2019.08.18"]
[Round "9.28"]
[White "Serarols Mabras, Bernat"]
[Black "Martinez-Conde Hernandez, Carlos"]
[Result "1-0"]
[ECO "D70"]
[WhiteElo "2338"]
[BlackElo "2046"]
[Annotator "NA"]
[PlyCount "109"]
[EventDate "2019.08.10"]
[EventType "swiss"]
[EventCountry "ESP"]
[SourceTitle "playchess.com"]
[Source "ChessBase"]
[SourceQuality "1"]
[TimeControl "5400+30"]

1. d4 {[%emt 0:00:00]} Nf6 {[%emt 0:00:00]} 2. c4 {[%emt 0:00:00]} g6 {[%emt 0:00:00]} 3. Nf3 {[%emt 0:00:00]} Bg7 {[%emt 0:00:06]} 4. e3 {[%emt 0:00:00]} O-O {[%emt 0:00:52]} 5. Be2 {[%emt 0:00:00]} d6 {[%emt 0:01:52]} 6. Nc3 {[%emt 0:00:00]} Nbd7 {[%emt 0:01:17]} 7. O-O {[%emt 0:00:00]} a5 {[%emt 0:01:46]} 8. Qc2 {[%emt 0:01:15]} c6 {[%emt 0:02:43]} 9. Rd1 {[%emt 0:02:26]} Re8 {[%emt 0:08:30]} 10. b3 {[%emt 0:01:38]} d5 {[%emt 0:03:30]} 11. Bb2 {[%emt 0:07:32]} Nb6 {[%emt 0:03:16]} 12. cxd5 {[%emt 0:01:08]} Nfxd5 {[%emt 0:00:36]} 13. h3 {[%emt 0:01:03]} a4 {[%emt 0:03:20]} 14. bxa4 {[%emt 0:08:42]} Nxc3 {[%emt 0:05:09]} 15. Bxc3 {[%emt 0:00:10]} Nxa4 {[%emt 0:01:01]} 16. Be1 {[%emt 0:00:14]} Qb6 {[%emt 0:04:28]} 17. Bc4 {[%emt 0:06:32]} e6 {[%emt 0:09:29]} 18. Bb3 {[%emt 0:03:14]} Qa7 {[%emt 0:01:18]} 19. Rac1 {[%emt 0:00:32]} Bf8 {[%emt 0:02:15]} 20. Ng5 {[%emt 0:02:05]} Be7 {[%emt 0:03:41]} 21. Ne4 {[%emt 0:01:40]} b6 {[%emt 0:03:19]} 22. Qxc6 {[%emt 0:04:36]} Bb7 {[%emt 0:01:32]} 23. Qc2 {[%emt 0:07:50]} Rac8 {[%emt 0:02:46]} 24. Qb1 {[%emt 0:02:16]} Qa8 {[%emt 0:02:02]} 25. f3 {[%emt 0:05:48]} Bxe4 {[%emt 0:06:38]} 26. Qxe4 {[%emt 0:01:14]} Qxe4 {[%emt 0:00:18]} 27. fxe4 {[%emt 0:00:03]} Nb2 {[%emt 0:01:01]} 28. Rxc8 {[%emt 0:00:33]} Rxc8 {[%emt 0:00:01]} 29. Rb1 {[%emt 0:01:58]} Nd3 {[%emt 0:04:18]} 30. Bd2 {[%emt 0:02:04]} Ba3 {[%emt 0:02:08]} 31. Kf1 {[%emt 0:02:54]} Kg7 {[%emt 0:04:13]} 32. e5 {[%emt 0:07:08]} b5 {[%emt 0:03:55]} 33. e4 {[%emt 0:16:27]} Rd8 {[%emt 0:07:18]} 34. Be3 {[%emt 0:01:35]} Rc8 {[%emt 0:01:58]} 35. Rd1 {[%emt 0:02:29]} Nb2 {[%emt 0:02:03]} 36. Rd2 {[%emt 0:03:45]} Rc1+ {[%emt 0:02:44]} 37. Ke2 {[%emt 0:00:47]} Nc4 {[%emt 0:00:04]} 38. Bxc4 {[%emt 0:00:07]} bxc4 {[%emt 0:00:02]} 39. d5 {[%emt 0:00:34]} c3 {[%emt 0:00:41]} 40. Rd1 {[%emt 0:01:05]} Rc2+ {[%emt 0:00:04]} 41. Kd3 {[%emt 0:00:00]} Rxg2 {[%emt 0:00:37]} 42. Kxc3 {[%emt 0:00:11]} exd5 {[%emt 0:00:16]} 43. exd5 {[%emt 0:00:33]} Bb2+ {[%emt 0:00:09]} 44. Kc4 {[%emt 0:04:11]} Bxe5 {[%emt 0:00:14]} 45. a4 {[%emt 0:00:46]} Ra2 {[%emt 0:02:05]} 46. Kb5 {[%emt 0:00:08]} Rb2+ {[%emt 0:00:15]} 47. Kc6 {[%emt 0:00:32]} Ra2 {[%emt 0:00:03]} 48. Bd4 {[%emt 0:00:30]} Bxd4 {[%emt 0:01:41]} 49. Rxd4 {[%emt 0:00:02]} Kf8 {[%emt 0:00:11]} 50. Rc4 {[%emt 0:00:56]} f5 {[%emt 0:02:10]} 51. d6 {[%emt 0:00:29]} Rd2 {[%emt 0:00:29]} 52. Kc7 {[%emt 0:01:50]} Kf7 {[%emt 0:00:10]} 53. a5 {[%emt 0:00:13]} Ke6 {[%emt 0:00:08]} 54. a6 {[%emt 0:01:22]} Ra2 {[%emt 0:00:15]} 55. d7 {[%emt 0:00:19]} 1-0

[Event "7th Iberoamerican-ch 2019"]
[Site "Linares"]
[Date "2019.08.18"]
[Round "9.29"]
[White "Perez Garcia, Alejandro"]
[Black "Romero Berruezo, Francisco"]
[Result "1-0"]
[ECO "A06"]
[WhiteElo "2347"]
[BlackElo "2161"]
[Annotator "NA"]
[PlyCount "111"]
[EventDate "2019.08.10"]
[EventType "swiss"]
[EventCountry "ESP"]
[SourceTitle "playchess.com"]
[Source "ChessBase"]
[SourceQuality "1"]
[TimeControl "5400+30"]

1. Nf3 {[%emt 0:00:00]} d5 {[%emt 0:02:02]} 2. g3 {[%emt 0:00:17]} Bg4 {[%emt 0:00:32]} 3. Bg2 {[%emt 0:01:08]} Nd7 {[%emt 0:00:16]} 4. O-O {[%emt 0:03:17]} e6 {[%emt 0:00:33]} 5. h3 {[%emt 0:01:09]} Bh5 {[%emt 0:00:17]} 6. d3 {[%emt 0:06:27]} Ngf6 {[%emt 0:03:08]} 7. Nbd2 {[%emt 0:02:50]} c6 {[%emt 0:09:49]} 8. Qe1 {[%emt 0:02:16]} Bb4 {[%emt 0:07:32]} 9. a3 {[%emt 0:08:18]} Ba5 {[%emt 0:00:40]} 10. e4 {[%emt 0:02:23]} O-O {[%emt 0:06:58]} 11. b4 {[%emt 0:12:01]} Bc7 {[%emt 0:00:49]} 12. e5 {[%emt 0:00:54]} Ne8 {[%emt 0:00:07]} 13. Bb2 {[%emt 0:00:48]} a5 {[%emt 0:00:10]} 14. Nb3 {[%emt 0:02:53]} axb4 {[%emt 0:02:18]} 15. axb4 {[%emt 0:04:09]} Bxf3 {[%emt 0:01:36]} 16. Bxf3 {[%emt 0:01:28]} Qb8 {[%emt 0:02:36]} 17. Rxa8 {[%emt 0:03:32]} Qxa8 {[%emt 0:00:17]} 18. Qe2 {[%emt 0:00:23]} Qb8 {[%emt 0:03:21]} 19. Re1 {[%emt 0:00:19]} Kh8 {[%emt 0:00:47]} 20. Bg2 {[%emt 0:14:21]} Bd8 {[%emt 0:14:42]} 21. b5 {[%emt 0:05:37]} Be7 {[%emt 0:00:30]} 22. c4 {[%emt 0:04:49]} Nc7 {[%emt 0:01:35]} 23. Nd4 {[%emt 0:00:47]} cxb5 {[%emt 0:08:36]} 24. cxd5 {[%emt 0:02:31]} Bb4 {[%emt 0:04:43]} 25. Rc1 {[%emt 0:08:03]} exd5 {[%emt 0:13:39]} 26. e6 {[%emt 0:06:05]} Nxe6 {[%emt 0:01:09]} 27. Nxe6 {[%emt 0:00:33]} fxe6 {[%emt 0:00:09]} 28. Qg4 {[%emt 0:00:07]} Ne5 {[%emt 0:04:18]} 29. Bxe5 {[%emt 0:00:13]} Qxe5 {[%emt 0:00:31]} 30. Qxb4 {[%emt 0:00:05]} Kg8 {[%emt 0:00:25]} 31. Qxb5 {[%emt 0:01:02]} Qd4 {[%emt 0:00:23]} 32. Rc2 {[%emt 0:00:45]} h5 {[%emt 0:01:11]} 33. h4 {[%emt 0:00:57]} Ra8 {[%emt 0:01:41]} 34. Qxb7 {[%emt 0:01:19]} Ra1+ {[%emt 0:00:10]} 35. Kh2 {[%emt 0:00:06]} Qxd3 {[%emt 0:00:45]} 36. Rc8+ {[%emt 0:01:38]} Kh7 {[%emt 0:00:05]} 37. Qf7 {[%emt 0:00:22]} Qf5 {[%emt 0:01:38]} 38. Qxf5+ {[%emt 0:03:14]} exf5 {[%emt 0:00:01]} 39. Bxd5 {[%emt 0:00:11]} Ra6 {[%emt 0:01:16]} 40. Rc6 {[%emt 0:00:27]} Ra7 {[%emt 0:00:18]} 41. Kg2 {[%emt 0:00:31]} g6 {[%emt 0:00:22]} 42. Kf3 {[%emt 0:00:12]} Kg7 {[%emt 0:00:53]} 43. Kf4 {[%emt 0:00:23]} Ra4+ {[%emt 0:01:28]} 44. Rc4 {[%emt 0:00:24]} Ra5 {[%emt 0:00:23]} 45. Rc7+ {[%emt 0:01:02]} Kh6 {[%emt 0:00:17]} 46. Bg8 {[%emt 0:01:11]} Ra4+ {[%emt 0:00:15]} 47. Ke5 {[%emt 0:00:16]} Ra5+ {[%emt 0:00:13]} 48. Kf6 {[%emt 0:00:27]} Ra6+ {[%emt 0:00:08]} 49. Be6 {[%emt 0:00:41]} Rb6 {[%emt 0:02:19]} 50. Rc8 {[%emt 0:00:35]} Kh7 {[%emt 0:00:25]} 51. Re8 {[%emt 0:00:13]} Rb4 {[%emt 0:01:20]} 52. Rg8 {[%emt 0:00:41]} Rg4 {[%emt 0:02:50]} 53. Rg7+ {[%emt 0:00:06]} Kh8 {[%emt 0:00:58]} 54. Rxg6 {[%emt 0:00:08]} Rxg6+ {[%emt 0:00:33]} 55. Kxg6 {[%emt 0:00:05]} f4 {[%emt 0:00:03]} 56. Kxh5 {[%emt 0:00:05]} 1-0

[Event "7th Iberoamerican-ch 2019"]
[Site "Linares"]
[Date "2019.08.18"]
[Round "9.30"]
[White "Castillo Gallego, Sergio"]
[Black "Lopez Mulet, Inigo"]
[Result "0-1"]
[ECO "C11"]
[WhiteElo "2203"]
[BlackElo "2397"]
[Annotator "NA"]
[PlyCount "70"]
[EventDate "2019.08.10"]
[EventType "swiss"]
[EventCountry "ESP"]
[SourceTitle "playchess.com"]
[Source "ChessBase"]
[SourceQuality "1"]
[TimeControl "5400+30"]

1. e4 {[%emt 0:04:38]} e6 {[%emt 0:00:00]} 2. d4 {[%emt 0:00:21]} d5 {[%emt 0:00:00]} 3. Nc3 {[%emt 0:00:06]} Nf6 {[%emt 0:00:00]} 4. e5 {[%emt 0:00:16]} Nfd7 {[%emt 0:00:00]} 5. Qg4 {[%emt 0:00:08]} c5 {[%emt 0:01:45]} 6. Nb5 {[%emt 0:01:31]} cxd4 {[%emt 0:02:06]} 7. Nf3 {[%emt 0:00:05]} Nc6 {[%emt 0:01:43]} 8. Bf4 {[%emt 0:00:06]} Qa5+ {[%emt 0:04:38]} 9. Bd2 {[%emt 0:00:15]} Qb6 {[%emt 0:00:53]} 10. Nd6+ {[%emt 0:00:12]} Bxd6 {[%emt 0:00:07]} 11. Qxg7 {[%emt 0:00:06]} Bxe5 {[%emt 0:05:07]} 12. Nxe5 {[%emt 0:01:30]} Rf8 {[%emt 0:00:05]} 13. Nd3 {[%emt 0:00:25]} e5 {[%emt 0:12:59]} 14. O-O-O {[%emt 0:02:31]} e4 {[%emt 0:01:13]} 15. Nf4 {[%emt 0:18:30]} Ne7 {[%emt 0:00:52]} 16. Nh5 {[%emt 0:11:49]} Qg6 {[%emt 0:01:30]} 17. g4 {[%emt 0:05:52]} Qxg7 {[%emt 0:08:13]} 18. Nxg7+ {[%emt 0:00:06]} Kd8 {[%emt 0:00:02]} 19. Bb4 {[%emt 0:05:04]} Nf6 {[%emt 0:07:40]} 20. h3 {[%emt 0:12:47]} Rg8 {[%emt 0:01:11]} 21. g5 {[%emt 0:01:40]} Nd7 {[%emt 0:01:45]} 22. Bxe7+ {[%emt 0:01:33]} Kxe7 {[%emt 0:00:04]} 23. Nf5+ {[%emt 0:00:09]} Ke6 {[%emt 0:00:32]} 24. Nxd4+ {[%emt 0:00:30]} Ke5 {[%emt 0:00:05]} 25. Be2 {[%emt 0:09:34]} Rxg5 {[%emt 0:10:15]} 26. f4+ {[%emt 0:01:05]} Kxf4 {[%emt 0:00:05]} 27. Rhf1+ {[%emt 0:00:38]} Ke5 {[%emt 0:00:05]} 28. Rxf7 {[%emt 0:00:33]} Nf6 {[%emt 0:00:30]} 29. Rf8 {[%emt 0:07:18]} Rg8 {[%emt 0:01:23]} 30. Rf7 {[%emt 0:03:21]} Bd7 {[%emt 0:07:43]} 31. Bg4 {[%emt 0:07:55]} Nxg4 {[%emt 0:06:42]} 32. hxg4 {[%emt 0:00:05]} Bxg4 {[%emt 0:00:32]} 33. Rd2 {[%emt 0:02:55]} Raf8 {[%emt 0:00:20]} 34. Rxf8 {[%emt 0:01:19]} Rxf8 {[%emt 0:00:04]} 35. c3 {[%emt 0:00:55]} e3 {[%emt 0:00:41]} 0-1

[Event "7th Iberoamerican-ch 2019"]
[Site "Linares"]
[Date "2019.08.18"]
[Round "9.31"]
[White "Sos Andreu, Eric"]
[Black "Garcia Paolicchi, Raul"]
[Result "1/2-1/2"]
[ECO "A11"]
[WhiteElo "2354"]
[BlackElo "2140"]
[Annotator "NA"]
[PlyCount "65"]
[EventDate "2019.08.10"]
[EventType "swiss"]
[EventCountry "ESP"]
[SourceTitle "playchess.com"]
[Source "ChessBase"]
[SourceQuality "1"]
[TimeControl "5400+30"]

1. c4 {[%emt 0:00:43]} c6 {[%emt 0:00:00]} 2. Nf3 {[%emt 0:00:13]} d5 {[%emt 0:00:03]} 3. d4 {[%emt 0:00:09]} Nf6 {[%emt 0:00:17]} 4. Qc2 {[%emt 0:00:07]} dxc4 {[%emt 0:00:21]} 5. Qxc4 {[%emt 0:00:05]} Bg4 {[%emt 0:00:34]} 6. Nbd2 {[%emt 0:00:12]} e6 {[%emt 0:00:43]} 7. g3 {[%emt 0:00:11]} Be7 {[%emt 0:01:29]} 8. Bg2 {[%emt 0:00:17]} O-O {[%emt 0:00:40]} 9. O-O {[%emt 0:00:38]} Nbd7 {[%emt 0:03:38]} 10. Ne5 {[%emt 0:04:09]} Bh5 {[%emt 0:01:10]} 11. Ndf3 {[%emt 0:01:12]} Rc8 {[%emt 0:02:34]} 12. Qa4 {[%emt 0:05:59]} Qb6 {[%emt 0:08:43]} 13. Bd2 {[%emt 0:11:02]} Nxe5 {[%emt 0:05:13]} 14. dxe5 {[%emt 0:00:12]} Nd7 {[%emt 0:00:06]} 15. Bc3 {[%emt 0:00:10]} Nc5 {[%emt 0:02:21]} 16. Qf4 {[%emt 0:03:28]} Rcd8 {[%emt 0:06:44]} 17. h4 {[%emt 0:02:36]} Bg6 {[%emt 0:04:06]} 18. Nd2 {[%emt 0:02:49]} Qa6 {[%emt 0:02:18]} 19. Bf3 {[%emt 0:01:18]} h6 {[%emt 0:02:26]} 20. b3 {[%emt 0:04:13]} Nd7 {[%emt 0:09:53]} 21. Qc4 {[%emt 0:05:20]} Qa3 {[%emt 0:04:19]} 22. Qf4 {[%emt 0:06:02]} Nb6 {[%emt 0:03:22]} 23. Nc4 {[%emt 0:02:14]} Nxc4 {[%emt 0:00:10]} 24. Qxc4 {[%emt 0:00:04]} Qc5 {[%emt 0:00:42]} 25. Qxc5 {[%emt 0:00:20]} Bxc5 {[%emt 0:00:08]} 26. Rad1 {[%emt 0:01:17]} Rfe8 {[%emt 0:01:33]} 27. Kg2 {[%emt 0:07:11]} Bb6 {[%emt 0:11:12]} 28. Bb4 {[%emt 0:04:15]} Rxd1 {[%emt 0:03:04]} 29. Rxd1 {[%emt 0:00:39]} Rd8 {[%emt 0:00:48]} 30. Rc1 {[%emt 0:01:46]} Bc7 {[%emt 0:01:17]} 31. Bc3 {[%emt 0:00:21]} Kf8 {[%emt 0:01:00]} 32. b4 {[%emt 0:01:35]} a6 {[%emt 0:04:04]} 33. a4 {[%emt 0:00:42]} 1/2-1/2

[Event "7th Iberoamerican-ch 2019"]
[Site "Linares"]
[Date "2019.08.18"]
[Round "9.32"]
[White "Perera Borrego, Maria Adela"]
[Black "Lianes Garcia, Marcos"]
[Result "0-1"]
[ECO "A40"]
[WhiteElo "2186"]
[BlackElo "2347"]
[Annotator "NA"]
[PlyCount "183"]
[EventDate "2019.08.10"]
[EventType "swiss"]
[EventCountry "ESP"]
[SourceTitle "playchess.com"]
[Source "ChessBase"]
[SourceQuality "1"]
[TimeControl "5400+30"]

1. d4 {[%emt 0:00:00]} g6 {[%emt 0:01:16]} 2. Nf3 Bg7 {[%emt 0:00:04]} 3. g3 {[%emt 0:00:55]} c5 {[%emt 0:00:11]} 4. d5 {[%emt 0:02:42]} d6 {[%emt 0:00:04]} 5. Bg2 {[%emt 0:03:16]} e5 {[%emt 0:02:23]} 6. e4 {[%emt 0:03:05]} Ne7 {[%emt 0:00:08]} 7. a4 {[%emt 0:00:23]} O-O {[%emt 0:00:29]} 8. Nc3 {[%emt 0:06:47]} h6 {[%emt 0:01:41]} 9. Nd2 {[%emt 0:03:17]} a6 {[%emt 0:06:19]} 10. a5 {[%emt 0:08:23]} b5 {[%emt 0:12:41]} 11. axb6 {[%emt 0:00:14]} Nd7 {[%emt 0:00:14]} 12. b7 {[%emt 0:09:37]} Bxb7 {[%emt 0:00:05]} 13. Nc4 {[%emt 0:00:19]} Nb6 {[%emt 0:00:38]} 14. Na5 {[%emt 0:00:35]} Qc7 {[%emt 0:02:27]} 15. O-O {[%emt 0:01:30]} f5 {[%emt 0:00:52]} 16. f3 {[%emt 0:01:32]} f4 {[%emt 0:01:29]} 17. Bd2 {[%emt 0:04:59]} g5 {[%emt 0:02:30]} 18. Nxb7 {[%emt 0:04:31]} Qxb7 {[%emt 0:00:03]} 19. Qe2 {[%emt 0:00:20]} Ra7 {[%emt 0:08:07]} 20. Ra5 {[%emt 0:01:08]} Na8 {[%emt 0:00:10]} 21. Rfa1 {[%emt 0:01:37]} Nc7 {[%emt 0:00:04]} 22. Bf1 {[%emt 0:01:36]} Rfa8 {[%emt 0:01:07]} 23. b3 {[%emt 0:02:24]} Qc8 {[%emt 0:04:49]} 24. R1a2 {[%emt 0:02:30]} h5 {[%emt 0:01:44]} 25. Na4 {[%emt 0:04:49]} Rb7 {[%emt 0:01:19]} 26. Qd1 {[%emt 0:03:41]} Ng6 {[%emt 0:13:53]} 27. Nb2 {[%emt 0:01:03]} Bf8 {[%emt 0:07:02]} 28. Be1 {[%emt 0:09:17]} Rbb8 {[%emt 0:11:31]} 29. Nc4 {[%emt 0:07:36]} Nb5 {[%emt 0:03:50]} 30. c3 {[%emt 0:02:31]} Nc7 {[%emt 0:02:13]} 31. Nd2 {[%emt 0:05:11]} Be7 {[%emt 0:06:33]} 32. Qa1 {[%emt 0:01:03]} g4 {[%emt 0:02:03]} 33. Be2 {[%emt 0:01:57]} fxg3 {[%emt 0:01:10]} 34. hxg3 {[%emt 0:00:33]} h4 {[%emt 0:00:19]} 35. fxg4 {[%emt 0:01:57]} hxg3 {[%emt 0:00:11]} 36. Bxg3 {[%emt 0:00:30]} Qd7 {[%emt 0:00:45]} 37. Qf1 {[%emt 0:01:30]} Rf8 {[%emt 0:00:06]} 38. Qg2 {[%emt 0:00:30]} Bg5 {[%emt 0:01:02]} 39. Nc4 {[%emt 0:02:37]} Rab8 {[%emt 0:00:12]} 40. Bd1 {[%emt 0:00:42]} Kg7 {[%emt 0:00:16]} 41. Rf2 {[%emt 0:00:48]} Rxf2 {[%emt 0:04:26]} 42. Qxf2 {[%emt 0:01:01]} Rf8 {[%emt 0:00:05]} 43. Qg2 {[%emt 0:00:36]} Rf6 {[%emt 0:00:14]} 44. Ra2 {[%emt 0:00:29]} Nb5 {[%emt 0:00:05]} 45. Rc2 {[%emt 0:01:45]} Qf7 {[%emt 0:00:34]} 46. Be2 {[%emt 0:00:34]} Qf8 {[%emt 0:01:01]} 47. Kh1 {[%emt 0:00:18]} Qh8+ {[%emt 0:01:22]} 48. Kg1 {[%emt 0:00:18]} Qd8 {[%emt 0:00:24]} 49. Bf1 {[%emt 0:00:33]} Qb8 {[%emt 0:00:36]} 50. Qe2 {[%emt 0:00:30]} Qf8 {[%emt 0:01:56]} 51. Bg2 {[%emt 0:00:22]} Bf4 {[%emt 0:00:26]} 52. Qe1 {[%emt 0:00:41]} Qe7 {[%emt 0:01:42]} 53. Ne3 {[%emt 0:00:21]} Bxe3+ {[%emt 0:00:15]} 54. Qxe3 {[%emt 0:00:01]} Rf8 {[%emt 0:00:22]} 55. Rf2 {[%emt 0:00:35]} Rxf2 {[%emt 0:00:10]} 56. Kxf2 {[%emt 0:00:20]} Qd8 {[%emt 0:00:20]} 57. Bf1 {[%emt 0:01:23]} Qa5 {[%emt 0:00:26]} 58. Bxb5 {[%emt 0:00:26]} axb5 {[%emt 0:00:04]} 59. Qd2 {[%emt 0:00:29]} Qa1 {[%emt 0:00:19]} 60. c4 {[%emt 0:00:45]} b4 {[%emt 0:00:24]} 61. Kg2 {[%emt 0:00:31]} Qb1 {[%emt 0:00:10]} 62. Qe3 {[%emt 0:00:33]} Qc2+ {[%emt 0:00:09]} 63. Kf1 {[%emt 0:00:26]} Qd1+ {[%emt 0:00:04]} 64. Kf2 {[%emt 0:00:18]} Qxg4 {[%emt 0:00:14]} 65. Qf3 {[%emt 0:00:34]} Qg5 {[%emt 0:00:06]} 66. Ke2 {[%emt 0:00:25]} Kg8 {[%emt 0:02:50]} 67. Be1 {[%emt 0:00:41]} Nf4+ {[%emt 0:00:09]} 68. Kd1 {[%emt 0:00:14]} Qg1 {[%emt 0:00:43]} 69. Qg3+ {[%emt 0:00:41]} Qxg3 {[%emt 0:00:01]} 70. Bxg3 {[%emt 0:00:01]} Nh5 {[%emt 0:01:35]} 71. Bh4 {[%emt 0:00:25]} Kf7 {[%emt 0:00:02]} 72. Ke2 {[%emt 0:00:28]} Nf4+ {[%emt 0:00:03]} 73. Kf3 {[%emt 0:00:54]} Nd3 {[%emt 0:01:05]} 74. Bg5 {[%emt 0:00:34]} Ne1+ {[%emt 0:00:02]} 75. Ke2 {[%emt 0:00:50]} Nc2 {[%emt 0:00:04]} 76. Be3 {[%emt 0:00:28]} Na1 {[%emt 0:00:23]} 77. Kd3 {[%emt 0:00:28]} Nxb3 {[%emt 0:00:04]} 78. Bh6 {[%emt 0:00:12]} Nd4 {[%emt 0:00:25]} 79. Bg5 {[%emt 0:00:25]} Nf3 {[%emt 0:00:37]} 80. Bh6 {[%emt 0:00:14]} Nh4 {[%emt 0:00:30]} 81. Bg5 {[%emt 0:00:21]} Ng6 {[%emt 0:00:11]} 82. Bd8 {[%emt 0:00:53]} Ne7 {[%emt 0:00:45]} 83. Bc7 {[%emt 0:00:34]} Nc8 {[%emt 0:00:04]} 84. Bd8 {[%emt 0:00:01]} Kg6 {[%emt 0:00:10]} 85. Bh4 {[%emt 0:01:17]} Kh5 {[%emt 0:00:04]} 86. Be1 {[%emt 0:00:19]} Nb6 {[%emt 0:00:35]} 87. Bd2 {[%emt 0:00:08]} Kg4 {[%emt 0:00:13]} 88. Bh6 {[%emt 0:00:08]} Kf3 {[%emt 0:00:22]} 89. Bf8 {[%emt 0:00:17]} Nc8 {[%emt 0:00:07]} 90. Bh6 {[%emt 0:00:25]} b3 {[%emt 0:00:29]} 91. Kc3 {[%emt 0:00:51]} Kxe4 {[%emt 0:00:07]} 92. Kxb3 {[%emt 0:00:02]} 0-1

[Event "7th Iberoamerican-ch 2019"]
[Site "Linares"]
[Date "2019.08.18"]
[Round "9.33"]
[White "Collado Barbas, Laura"]
[Black "Garcia Martin, Marta"]
[Result "0-1"]
[ECO "D31"]
[WhiteElo "2070"]
[BlackElo "2313"]
[Annotator "NA"]
[PlyCount "64"]
[EventDate "2019.08.10"]
[EventType "swiss"]
[EventCountry "ESP"]
[SourceTitle "playchess.com"]
[Source "ChessBase"]
[SourceQuality "1"]
[TimeControl "5400+30"]

1. d4 {[%emt 0:00:00]} d5 {[%emt 0:00:00]} 2. c4 {[%emt 0:00:00]} e6 {[%emt 0:00:00]} 3. Nc3 {[%emt 0:00:00]} Bb4 {[%emt 0:00:00]} 4. Nf3 {[%emt 0:00:18]} dxc4 {[%emt 0:01:09]} 5. e3 {[%emt 0:01:45]} b5 {[%emt 0:01:26]} 6. Bd2 {[%emt 0:02:15]} c6 {[%emt 0:06:17]} 7. a4 {[%emt 0:12:50]} a5 {[%emt 0:00:38]} 8. axb5 {[%emt 0:00:13]} Bxc3 {[%emt 0:00:06]} 9. Bxc3 {[%emt 0:00:15]} cxb5 {[%emt 0:00:05]} 10. b3 {[%emt 0:06:07]} Bb7 {[%emt 0:00:09]} 11. d5 {[%emt 0:05:49]} Nf6 {[%emt 0:02:13]} 12. bxc4 {[%emt 0:00:28]} b4 {[%emt 0:04:34]} 13. Bxf6 {[%emt 0:00:31]} gxf6 {[%emt 0:11:05]} 14. Nd4 {[%emt 0:04:36]} e5 {[%emt 0:13:33]} 15. Nf5 {[%emt 0:04:54]} Bc8 {[%emt 0:01:14]} 16. Nh6 {[%emt 0:03:11]} f5 {[%emt 0:09:27]} 17. Qh5 {[%emt 0:07:07]} Qf6 {[%emt 0:00:10]} 18. e4 {[%emt 0:06:43]} Qg6 {[%emt 0:22:19]} 19. Nxf5 {[%emt 0:01:53]} Bxf5 {[%emt 0:01:48]} 20. Qxf5 {[%emt 0:00:06]} Qxf5 {[%emt 0:00:27]} 21. exf5 {[%emt 0:07:17]} Nd7 {[%emt 0:02:56]} 22. Be2 {[%emt 0:00:53]} Ke7 {[%emt 0:06:58]} 23. Kd2 Nc5 {[%emt 0:00:40]} 24. Kc2 {[%emt 0:04:02]} Kd6 25. Rhb1 {[%emt 0:05:16]} Rhb8 {[%emt 0:01:35]} 26. f3 a4 {[%emt 0:07:42]} 27. Bd1 {[%emt 0:02:29]} h5 {[%emt 0:02:58]} 28. h4 {[%emt 0:10:29]} Nb3 {[%emt 0:00:30]} 29. g3 {[%emt 0:02:50]} Nd4+ {[%emt 0:01:50] Ra2 b3+} 30. Kd3 {[%emt 0:01:24]} Kc5 {[%emt 0:00:33]} 31. Ra3 {[%emt 0:10:55] Rb4 Rc1} Nxf5 {[%emt 0:02:02]} 32. f4 {[%emt 0:00:27]} exf4 {[%emt 0:00:52]} 0-1

[Event "7th Iberoamerican-ch 2019"]
[Site "Linares"]
[Date "2019.08.18"]
[Round "9.34"]
[White "Gil Quilez, Sonia"]
[Black "Balbuena Fuentes, Mario"]
[Result "1-0"]
[ECO "A40"]
[WhiteElo "2102"]
[BlackElo "2268"]
[Annotator "NA"]
[PlyCount "83"]
[EventDate "2019.08.10"]
[EventType "swiss"]
[EventCountry "ESP"]
[SourceTitle "playchess.com"]
[Source "ChessBase"]
[SourceQuality "1"]
[TimeControl "5400+30"]

1. d4 {[%emt 0:00:00]} e6 {[%emt 0:00:55]} 2. Nf3 {[%emt 0:00:00]} f5 {[%emt 0:00:27]} 3. g3 {[%emt 0:00:29]} Nf6 {[%emt 0:00:14]} 4. Bg2 {[%emt 0:00:20]} d5 {[%emt 0:00:25]} 5. c4 {[%emt 0:00:47]} c6 {[%emt 0:00:19]} 6. b3 {[%emt 0:00:45]} Bd6 {[%emt 0:00:20]} 7. O-O {[%emt 0:00:47]} Qe7 {[%emt 0:00:06]} 8. Bb2 {[%emt 0:01:48]} b6 {[%emt 0:00:16]} 9. Nc3 {[%emt 0:00:38]} Bb7 {[%emt 0:02:21]} 10. Qc1 {[%emt 0:01:16]} Nbd7 {[%emt 0:04:35]} 11. a4 {[%emt 0:01:41]} a5 {[%emt 0:00:32]} 12. Ba3 {[%emt 0:04:24]} Rc8 {[%emt 0:10:38]} 13. Bxd6 {[%emt 0:04:57]} Qxd6 {[%emt 0:00:07]} 14. Qe3 {[%emt 0:00:11]} O-O {[%emt 0:12:12]} 15. cxd5 {[%emt 0:15:32]} exd5 {[%emt 0:07:00]} 16. Ne5 {[%emt 0:01:18]} Rfe8 {[%emt 0:05:19]} 17. f4 {[%emt 0:02:07]} c5 {[%emt 0:07:09]} 18. Qd3 {[%emt 0:09:23]} Ne4 {[%emt 0:06:06]} 19. Nb5 {[%emt 0:08:41]} Qe6 {[%emt 0:02:31]} 20. e3 {[%emt 0:00:39]} c4 {[%emt 0:07:41]} 21. bxc4 {[%emt 0:01:07]} dxc4 {[%emt 0:00:02]} 22. Qa3 {[%emt 0:01:09]} Ndf6 {[%emt 0:00:42]} 23. Rac1 {[%emt 0:03:11]} Red8 {[%emt 0:03:01]} 24. Rc2 {[%emt 0:04:41]} Nd5 {[%emt 0:02:09]} 25. Bxe4 {[%emt 0:11:19]} fxe4 {[%emt 0:00:10]} 26. Rxc4 {[%emt 0:01:04]} Rxc4 {[%emt 0:04:50]} 27. Nxc4 {[%emt 0:00:03]} Nb4 {[%emt 0:02:55]} 28. Ne5 {[%emt 0:04:25]} Nd3 {[%emt 0:01:54]} 29. f5 {[%emt 0:01:15]} Qh6 {[%emt 0:04:08]} 30. Ng4 {[%emt 0:02:38]} Qg5 {[%emt 0:06:05]} 31. f6 {[%emt 0:01:19]} Nb4 {[%emt 0:00:54]} 32. f7+ {[%emt 0:04:33]} Kf8 {[%emt 0:00:02]} 33. Rf4 {[%emt 0:00:12]} Bd5 {[%emt 0:03:26]} 34. Ne5 {[%emt 0:00:42]} Qh5 {[%emt 0:00:23]} 35. Qc1 {[%emt 0:01:29]} Qg5 {[%emt 0:03:07]} 36. Qc7 {[%emt 0:07:18]} Qe7 {[%emt 0:00:14]} 37. Rh4 {[%emt 0:00:54]} Nd3 {[%emt 0:01:45]} 38. Rxh7 {[%emt 0:00:46]} Nxe5 {[%emt 0:00:10]} 39. Rh8+ {[%emt 0:00:53]} Kxf7 {[%emt 0:00:02]} 40. Qxd8 {[%emt 0:00:06]} Nf3+ {[%emt 0:00:31]} 41. Kf2 {[%emt 0:00:21]} Qe6 {[%emt 0:02:32]} 42. Nc7 {[%emt 0:01:20]} 1-0